bitfinex-derivatives/quotes_ETHF0:USTF0_20260118
["timestamp","ask_amount","ask_price","bid_price","bid_amount"]
[1768768954533,0.93137252,3342.9,3341.4,1.0824184]
[1768768954737,0.93137252,3342.8,3341.4,1.0824184]
[1768768955041,0.93137252,3342.7,3341.4,1.0824184]
[1768768955243,2.80184465,3343.2,3341.4,1.0824184]
[1768768955439,0.93143238,3343.1,3341.4,1.0824184]
[1768768955640,0.93143238,3343.0,3341.4,1.0824184]
[1768768955941,0.93143238,3342.9,3341.4,1.0824184]
[1768768956142,0.93143262,3342.8,3341.4,1.0824184]
[1768768956440,0.93143262,3342.7,3341.4,1.0824184]
[1768768956742,2.80184465,3343.2,3341.4,1.0824184]
[1768768956935,0.93147627,3343.1,3341.4,1.0824184]
[1768768957132,0.93147627,3343.0,3341.4,1.0824184]
[1768768957330,0.93147627,3342.9,3341.4,1.0824184]
[1768768957536,0.93147627,3342.8,3341.4,1.0824184]
[1768768957736,0.93147627,3342.7,3341.4,1.0824184]
[1768768957935,1.18827125,3343.2,3341.4,1.0824184]
[1768768958246,0.93141394,3343.1,3341.4,1.0824184]
[1768768958435,0.93141394,3343.0,3341.4,1.0824184]
[1768768958736,0.93141394,3342.9,3341.4,1.0824184]
[1768768958936,0.93141394,3342.8,3341.4,1.0824184]
[1768768959144,0.93141394,3342.7,3341.4,1.0824184]
[1768768959444,1.18827125,3343.2,3341.4,1.0824184]
[1768768959644,0.93144709,3343.1,3341.4,1.0824184]
[1768768959845,0.93144709,3343.0,3341.4,1.0824184]
[1768768960042,0.93144709,3342.9,3341.4,1.0824184]
[1768768960244,0.93144709,3342.8,3341.4,1.0824184]
[1768768960440,1.6135734,3343.5,3341.4,1.0824184]
[1768768960640,0.93150713,3343.4,3341.4,1.0824184]
[1768768960945,0.93150713,3343.3,3341.4,1.0824184]
[1768768961245,0.93150713,3343.2,3341.4,1.0824184]
[1768768961545,0.93150713,3343.1,3341.4,1.0824184]
[1768768961747,0.93150713,3343.0,3341.4,1.0824184]
[1768768962046,2.81177492,3343.6,3341.4,1.0824184]
[1768768962248,0.93190726,3343.5,3341.4,1.0824184]
[1768768962446,0.93190726,3343.4,3341.4,1.0824184]
[1768768962648,0.93190726,3343.3,3341.4,1.0824184]
[1768768962949,0.93190726,3343.2,3341.4,1.0824184]
[1768768963149,0.93190726,3343.1,3341.4,1.0824184]
[1768768963344,0.93190726,3343.0,3341.4,1.0824184]
[1768768963548,2.81177492,3343.6,3341.4,1.0824184]
[1768768963843,0.93188116,3343.5,3341.4,1.0824184]
[1768768964043,0.93188116,3343.4,3341.4,1.0824184]
[1768768964342,0.93188116,3343.3,3341.4,1.0824184]
[1768768964544,0.93188116,3343.2,3341.4,1.0824184]
[1768768964848,0.93188116,3343.1,3341.4,1.0824184]
[1768768965143,0.93188116,3343.0,3341.4,1.2320984]
[1768768965346,1.19820152,3343.6,3341.4,1.2320984]
[1768768965648,0.93190257,3343.5,3341.4,1.2320984]
[1768768965848,0.93190257,3343.4,3341.4,1.2320984]
[1768768966149,0.93190257,3343.3,3341.4,1.2320984]
[1768768966348,0.93190257,3343.2,3341.6,1.18003644]
[1768768966650,7.9705734,3343.9,3341.6,1.32971644]
[1768768966853,0.93201259,3343.8,3341.6,1.32971644]
[1768768967042,0.93201259,3343.7,3341.6,1.32971644]
[1768768967244,0.93201259,3343.6,3341.6,1.32971644]
[1768768967443,0.93201259,3343.5,3341.6,1.32971644]
[1768768967646,0.93201259,3343.4,3341.6,1.32971644]
[1768768967845,0.93201259,3343.3,3341.6,1.32971644]
[1768768968149,0.93201259,3343.2,3341.6,1.32971644]
[1768768968351,9.16877492,3343.9,3341.6,1.32971644]
[1768768968551,0.93188598,3343.8,3341.6,1.32971644]
[1768768968752,0.93188598,3343.7,3341.6,1.32971644]
[1768768968951,0.93188598,3343.6,3341.6,1.32971644]
[1768768969138,0.93188598,3343.5,3341.6,1.32971644]
[1768768969341,0.93188598,3343.4,3341.6,1.32971644]
[1768768969543,0.93188598,3343.3,3341.6,1.32971644]
[1768768969746,0.93188598,3343.2,3341.6,1.32971644]
[1768768969950,1.19820152,3343.5,3341.6,1.32971644]
[1768768970148,0.93188661,3343.4,3341.6,1.32971644]
[1768768970349,0.93188661,3343.3,3341.6,1.32971644]
[1768768970549,0.93188661,3343.2,3341.6,1.32971644]
[1768768970749,1.19820152,3343.5,3341.6,1.32971644]
[1768768970950,0.93193705,3343.4,3341.6,1.32971644]
[1768768971151,0.93193705,3343.3,3341.6,1.32971644]
[1768768971450,0.93193705,3343.2,3341.6,1.32971644]
[1768768971652,1.19820152,3343.5,3341.6,1.32971644]
[1768768971847,0.93202874,3343.4,3341.6,1.32971644]
[1768768972054,0.93202874,3343.3,3341.6,1.32971644]
[1768768972249,2.81177492,3343.9,3341.6,1.32971644]
[1768768972452,2.17736159,3343.8,3341.6,1.32971644]
[1768768972654,0.93205032,3343.7,3341.6,1.32971644]
[1768768972853,0.93205032,3343.6,3341.6,1.32971644]
[1768768973155,0.93205032,3343.5,3341.6,1.32971644]
[1768768973350,0.93205032,3343.4,3341.6,1.32971644]
[1768768973652,0.93205032,3343.3,3341.6,1.32971644]
[1768768973855,1.24531127,3343.8,3341.6,1.32971644]
[1768768974057,0.93201819,3343.7,3341.6,1.32971644]
[1768768974259,0.93201819,3343.6,3341.6,1.32971644]
[1768768974551,0.93201819,3343.5,3341.6,1.32971644]
[1768768974750,0.93201819,3343.4,3341.6,1.32971644]
[1768768974955,0.93201819,3343.3,3341.6,1.32971644]
[1768768975148,1.24531127,3343.5,3341.6,1.32971644]
[1768768975343,0.93198176,3343.4,3341.6,1.32971644]
[1768768975552,0.13730966,3342.5,3341.6,1.32971644]
[1768768976557,1.24531127,3343.5,3341.6,1.32971644]
[1768768976861,0.93200622,3343.4,3341.6,1.32971644]
[1768768977159,0.93200622,3343.3,3341.6,1.32971644]
[1768768977356,1.24531127,3343.5,3341.6,1.32971644]
[1768768977657,0.93106944,3343.4,3341.6,1.32971644]
[1768768977853,0.93106944,3343.3,3341.6,1.32971644]
[1768768978055,1.24531127,3343.5,3341.6,1.32971644]
[1768768978254,0.93106852,3343.4,3341.6,1.32971644]
[1768768978458,0.93106852,3343.3,3341.6,1.32971644]
[1768768978655,1.24531127,3343.5,3341.6,1.32971644]
[1768768978859,0.93106597,3343.4,3341.6,1.32971644]
[1768768979159,0.93106597,3343.3,3341.6,1.32971644]
[1768768979362,1.24531127,3343.5,3341.6,1.32971644]
[1768768979657,0.93107429,3343.4,3341.6,1.32971644]
[1768768979855,0.93107429,3343.3,3341.6,1.32971644]
[1768768980051,1.24531127,3343.5,3341.6,1.32971644]
[1768768980052,0.93107429,3343.2,3341.6,1.32971644]
[1768768980253,1.24531127,3343.5,3341.6,1.32971644]
[1768768980454,0.93109508,3343.4,3341.6,1.32971644]
[1768768980653,0.93109508,3343.3,3341.6,1.32971644]
[1768768980859,0.93109508,3343.2,3342.1,0.95527584]
[1768768981060,2.20058711,3343.5,3342.1,0.95527584]
[1768768981260,0.93109565,3343.4,3342.1,0.95527584]
[1768768981459,0.93109565,3343.3,3342.1,0.95527584]
[1768768981661,0.93109565,3343.2,3342.1,0.95527584]
[1768768981863,2.20058711,3343.5,3342.1,0.95527584]
[1768768982062,0.93112383,3343.4,3342.1,0.95527584]
[1768768982261,0.93112383,3343.3,3342.1,0.95527584]
[1768768982462,0.93112383,3343.2,3342.1,0.95527584]
[1768768982670,1.6135734,3343.8,3342.3,0.95527584]
[1768768982862,0.95527584,3343.6,3342.3,0.95527584]
[1768768983056,0.93120018,3343.5,3342.3,0.95527584]
[1768768985564,0.93120018,3343.4,3342.3,0.95527584]
[1768768985767,0.95527584,3343.8,3342.3,0.95527584]
[1768768985963,0.93136672,3343.7,3342.3,0.95527584]
[1768768986170,0.93136672,3343.6,3342.3,0.95527584]
[1768768986362,0.93136672,3343.5,3342.3,0.95527584]
[1768768986663,0.00376572,3344.0,3343.3,0.95527584]
[1768768986864,0.93153674,3343.9,3343.3,0.95527584]
[1768768987065,0.00376572,3344.0,3343.3,0.95527584]
[1768768987864,2.20058711,3344.7,3343.3,0.95527584]
[1768768988169,0.93129754,3344.6,3343.3,0.95527584]
[1768768988372,1.88657338,3344.5,3343.0,0.95527584]
[1768768988570,0.93129754,3344.4,3343.0,0.95527584]
[1768768988772,0.93129754,3344.3,3343.0,0.95527584]
[1768768989073,0.00223135,3344.4,3343.2,0.95527584]
[1768768989278,0.93086991,3344.3,3343.2,0.95527584]
[1768768989574,0.00223135,3344.4,3343.2,0.95527584]
[1768768989959,0.93059995,3344.3,3343.2,0.95527584]
[1768768990173,0.00223135,3344.4,3343.2,0.95527584]
[1768768990576,0.00223135,3344.4,3343.4,0.95527584]
[1768768992569,0.00223135,3344.4,3343.6,0.95527584]
[1768768993670,0.00223135,3344.4,3343.4,0.95527584]
[1768769002681,0.00223135,3344.4,3342.7,2.993]
[1768769002682,0.00223135,3344.4,3343.6,2.22238611]
[1768769002874,0.95527584,3345.0,3343.6,2.22238611]
[1768769003073,0.92916298,3344.9,3343.6,2.22238611]
[1768769003273,0.95527584,3345.0,3343.6,2.22238611]
[1768769003476,0.9291358,3344.9,3343.6,2.22238611]
[1768769003779,0.00284243,3344.9,3343.6,2.22238611]
[1768769009386,0.92788173,3344.8,3343.6,2.22238611]
[1768769009585,0.00284243,3344.9,3343.6,2.22238611]
[1768769009772,0.92808206,3344.8,3343.6,2.22238611]
[1768769009977,0.00284243,3344.9,3343.6,2.22238611]
[1768769010177,0.92808206,3344.8,3343.6,2.22238611]
[1768769010377,0.00284243,3344.9,3343.6,2.22238611]
[1768769010582,0.92809936,3344.8,3343.6,2.22238611]
[1768769010879,0.00284243,3344.9,3343.6,2.22238611]
[1768769011078,0.92809936,3344.8,3343.6,2.22238611]
[1768769011286,0.00284243,3344.9,3343.6,2.22238611]
[1768769011487,0.92836911,3344.8,3343.6,2.22238611]
[1768769011786,0.00284243,3344.9,3343.6,2.22238611]
[1768769011982,0.92837123,3344.8,3343.6,2.22238611]
[1768769012289,0.00284243,3344.9,3343.6,2.22238611]
[1768769012586,0.92871016,3344.8,3343.6,2.22238611]
[1768769012785,0.92871016,3344.7,3343.6,2.22238611]
[1768769012986,0.00284243,3344.9,3343.6,2.22238611]
[1768769013285,0.92870988,3344.8,3343.6,2.22238611]
[1768769013487,0.92870988,3344.7,3343.6,2.22238611]
[1768769013790,0.00284243,3344.9,3343.6,2.22238611]
[1768769013987,0.92908698,3344.8,3343.6,2.22238611]
[1768769014289,0.92908698,3344.7,3343.6,2.22238611]
[1768769014485,0.92908698,3344.6,3343.6,2.22238611]
[1768769014782,0.00284243,3344.9,3343.6,2.22238611]
[1768769014983,0.92954927,3344.8,3343.6,2.22238611]
[1768769015185,0.92954927,3344.7,3343.6,2.22238611]
[1768769015387,0.92954927,3344.6,3343.6,2.22238611]
[1768769015584,0.00284243,3344.9,3343.6,2.22238611]
[1768769015785,0.93000633,3344.8,3343.6,2.22238611]
[1768769015983,0.93000633,3344.7,3343.6,2.22238611]
[1768769016288,0.93000633,3344.6,3343.6,2.22238611]
[1768769016489,0.93000633,3344.5,3343.6,2.22238611]
[1768769016695,0.00284243,3344.9,3343.6,2.22238611]
[1768769016985,0.93068177,3344.8,3343.6,2.22238611]
[1768769017181,0.93068177,3344.7,3343.6,2.22238611]
[1768769017387,0.93068177,3344.6,3343.6,2.22238611]
[1768769017589,0.93068177,3344.5,3343.6,2.22238611]
[1768769017788,0.00284243,3344.9,3343.6,2.22238611]
[1768769017986,0.93083806,3344.8,3343.6,2.22238611]
[1768769018191,0.93083806,3344.7,3343.6,2.22238611]
[1768769018488,0.93083806,3344.6,3343.6,2.22238611]
[1768769018687,0.93083806,3344.5,3343.6,1.26711027]
[1768769018890,0.00284243,3344.9,3343.6,1.26711027]
[1768769019094,0.93089446,3344.8,3343.6,1.26711027]
[1768769019390,0.93089446,3344.7,3343.6,1.26711027]
[1768769019589,0.00284243,3344.9,3343.6,1.26711027]
[1768769019590,0.93089446,3344.6,3343.6,1.26711027]
[1768769019790,0.93089446,3344.5,3343.6,1.26711027]
[1768769020090,0.00284243,3344.9,3343.6,1.26711027]
[1768769020292,0.93096789,3344.8,3343.6,1.26711027]
[1768769020491,0.93096789,3344.7,3343.6,1.26711027]
[1768769020789,0.93096789,3344.6,3343.6,1.26711027]
[1768769020989,0.93096789,3344.5,3343.6,1.26711027]
[1768769021182,0.00284243,3344.9,3343.6,1.26711027]
[1768769021382,0.93108824,3344.8,3343.6,1.26711027]
[1768769021583,0.93108824,3344.7,3343.6,1.26711027]
[1768769021793,0.93108824,3344.6,3343.6,1.26711027]
[1768769021994,0.93108824,3344.5,3343.6,1.26711027]
[1768769022293,0.00284243,3344.9,3343.6,1.26711027]
[1768769022479,0.93115229,3344.8,3343.6,1.26711027]
[1768769022679,0.93115229,3344.7,3343.6,1.26711027]
[1768769022886,0.93115229,3344.6,3343.6,1.26711027]
[1768769023089,0.93115229,3344.5,3343.6,1.26711027]
[1768769023394,0.00284243,3344.9,3343.6,1.26711027]
[1768769023592,0.93119256,3344.8,3343.6,1.26711027]
[1768769023792,0.93119256,3344.7,3343.6,1.26711027]
[1768769023995,0.93119256,3344.6,3343.6,1.26711027]
[1768769024289,0.93119256,3344.5,3343.6,1.26711027]
[1768769024492,0.00284243,3344.9,3343.6,1.26711027]
[1768769024686,0.93124001,3344.8,3343.6,1.26711027]
[1768769024888,0.93124001,3344.7,3343.6,1.26711027]
[1768769025084,0.93124001,3344.6,3343.6,1.26711027]
[1768769025284,0.93124001,3344.5,3343.6,1.26711027]
[1768769025491,0.00284243,3344.9,3343.6,1.26711027]
[1768769025676,0.93129891,3344.8,3343.6,1.26711027]
[1768769025882,0.93129891,3344.7,3343.6,1.26711027]
[1768769026087,0.93129891,3344.6,3343.6,1.26711027]
[1768769026378,0.93129891,3344.5,3343.6,1.26711027]
[1768769026582,0.00284243,3344.9,3343.6,1.26711027]
[1768769026777,0.95446727,3344.6,3343.1,1.20984453]
[1768769026991,0.93135427,3344.5,3343.1,1.20984453]
[1768769027179,0.93135427,3344.4,3343.1,1.20984453]
[1768769027491,2.25427828,3344.6,3343.1,1.20984453]
[1768769027492,0.93135427,3344.3,3343.1,1.20984453]
[1768769027686,0.93135427,3344.2,3343.1,1.20984453]
[1768769027888,2.25427828,3344.6,3343.1,1.20984453]
[1768769028091,0.93121092,3344.5,3343.1,1.20984453]
[1768769028292,0.93121092,3344.4,3342.7,1.20984453]
[1768769028495,0.93121092,3344.3,3342.7,1.20984453]
[1768769028682,0.93121092,3344.2,3342.7,1.20984453]
[1768769028882,0.93121092,3344.1,3342.7,1.20984453]
[1768769029095,1.29981101,3344.4,3342.7,1.20984453]
[1768769029388,2.23094035,3344.3,3342.7,1.20984453]
[1768769029608,0.93112934,3344.2,3342.7,1.20984453]
[1768769029789,0.93112934,3344.1,3342.7,1.20984453]
[1768769029990,1.29981101,3344.3,3342.7,1.20984453]
[1768769030198,0.93091035,3344.2,3342.7,1.20984453]
[1768769030492,0.93091035,3344.1,3342.7,1.20984453]
[1768769030695,0.93091035,3344.0,3342.7,1.20984453]
[1768769030886,1.29981101,3344.3,3342.7,1.20984453]
[1768769031088,0.93060619,3344.2,3342.7,1.20984453]
[1768769031287,0.93060619,3344.1,3342.7,1.20984453]
[1768769031590,0.93060619,3344.0,3342.7,1.20984453]
[1768769031892,1.29981101,3344.3,3342.7,1.20984453]
[1768769032096,0.93037621,3344.2,3342.7,1.20984453]
[1768769032395,0.93037621,3344.1,3342.7,1.20984453]
[1768769032594,0.93037621,3344.0,3342.7,1.20984453]
[1768769032795,1.29981101,3344.3,3342.7,1.20984453]
[1768769032995,0.93018484,3344.2,3342.7,1.20984453]
[1768769033196,0.93018484,3344.1,3342.7,1.20984453]
[1768769033495,0.93018484,3344.0,3342.7,1.20984453]
[1768769033694,1.29981101,3344.3,3342.7,1.20984453]
[1768769033893,0.93001864,3344.2,3342.7,1.20984453]
[1768769034097,0.93001864,3344.1,3342.7,1.20984453]
[1768769034285,0.93001864,3344.0,3342.7,1.20984453]
[1768769034487,1.29981101,3344.3,3342.7,1.20984453]
[1768769034693,0.92988796,3344.2,3342.7,1.20984453]
[1768769034892,0.92988796,3344.1,3342.7,1.20984453]
[1768769035093,0.92988796,3344.0,3342.7,1.20984453]
[1768769035290,1.29981101,3344.3,3342.7,1.20984453]
[1768769035492,0.9297805,3344.2,3342.7,1.20984453]
[1768769035689,0.9297805,3344.1,3342.7,1.20984453]
[1768769035888,0.9297805,3344.0,3342.7,1.20984453]
[1768769036091,1.29981101,3344.3,3342.7,1.20984453]
[1768769036295,0.92977917,3344.2,3342.7,1.20984453]
[1768769036493,0.92977917,3344.1,3342.7,1.20984453]
[1768769036693,0.93242718,3344.0,3342.7,1.20984453]
[1768769036900,1.29981101,3344.3,3342.7,1.20984453]
[1768769037202,0.93242616,3344.2,3342.7,1.20984453]
[1768769037395,0.93242616,3344.1,3342.7,1.20984453]
[1768769037598,1.29981101,3344.3,3342.7,1.20984453]
[1768769037899,0.93235311,3344.2,3342.7,1.20984453]
[1768769038198,0.93235311,3344.1,3342.7,1.20984453]
[1768769038395,0.9322938,3344.0,3342.7,1.20984453]
[1768769038600,1.29981101,3344.3,3342.7,1.20984453]
[1768769038795,0.9322938,3344.2,3342.7,1.20984453]
[1768769038989,0.9322938,3344.1,3342.7,1.20984453]
[1768769039192,0.9322938,3344.0,3342.7,1.20984453]
[1768769039499,1.29981101,3344.3,3342.7,1.20984453]
[1768769039696,0.93224494,3344.2,3342.7,1.20984453]
[1768769039898,0.93224494,3344.1,3342.7,1.20984453]
[1768769040201,0.93224494,3344.0,3342.7,1.20984453]
[1768769040501,1.29981101,3344.3,3342.7,1.20984453]
[1768769040703,0.93199731,3344.2,3342.7,1.20984453]
[1768769040897,0.93199731,3344.1,3342.7,1.20984453]
[1768769041196,1.29981101,3344.3,3342.7,1.20984453]
[1768769041398,0.93197103,3344.2,3342.7,1.20984453]
[1768769041599,0.93197103,3344.1,3342.7,1.20984453]
[1768769041800,1.29981101,3344.3,3342.7,1.20984453]
[1768769042101,0.93196878,3344.2,3342.7,1.20984453]
[1768769042303,0.93196878,3344.1,3342.7,1.20984453]
[1768769042494,1.29981101,3344.3,3342.7,1.20984453]
[1768769042696,0.93195269,3344.2,3342.7,1.20984453]
[1768769042900,0.93195269,3344.1,3342.7,1.20984453]
[1768769043102,1.29981101,3344.3,3342.7,1.20984453]
[1768769043304,0.93195371,3344.2,3342.7,1.20984453]
[1768769043495,0.93195371,3344.1,3342.7,1.20984453]
[1768769043696,1.29981101,3344.3,3342.7,1.20984453]
[1768769043893,0.93194776,3344.2,3342.7,1.20984453]
[1768769044105,0.93194776,3344.1,3342.7,1.20984453]
[1768769044403,2.56804067,3344.6,3342.7,1.20984453]
[1768769044596,0.93195644,3344.5,3342.7,1.20984453]
[1768769044800,0.93195644,3344.4,3342.7,1.20984453]
[1768769044996,0.93195644,3344.3,3342.7,1.20984453]
[1768769045196,0.93195644,3344.2,3342.7,1.20984453]
[1768769045504,0.93195644,3344.1,3342.7,1.20984453]
[1768769045807,2.56804067,3344.6,3342.7,1.20984453]
[1768769046005,0.93201556,3344.5,3342.7,1.20984453]
[1768769046197,0.93201556,3344.4,3342.7,1.20984453]
[1768769046400,0.93201556,3344.3,3342.7,1.20984453]
[1768769046598,0.93201556,3344.2,3342.7,1.20984453]
[1768769046805,0.93201556,3344.1,3342.7,1.20984453]
[1768769047106,2.56804067,3344.6,3342.7,1.20984453]
[1768769047303,0.9320606,3344.5,3342.7,1.20984453]
[1768769047604,0.9320606,3344.4,3342.7,1.20984453]
[1768769047805,0.9320606,3344.3,3342.7,1.20984453]
[1768769048000,0.9320606,3344.2,3342.7,1.20984453]
[1768769048201,0.9320606,3344.1,3342.7,1.20984453]
[1768769048405,0.9320606,3344.0,3342.7,1.20984453]
[1768769048698,2.56804067,3344.6,3342.7,1.20984453]
[1768769048906,0.93213354,3344.5,3342.7,1.20984453]
[1768769049103,0.93213354,3344.4,3342.7,1.20984453]
[1768769049308,0.93213354,3344.3,3342.7,1.20984453]
[1768769049510,0.93213354,3344.2,3342.7,1.20984453]
[1768769049699,0.93213354,3344.1,3342.7,1.20984453]
[1768769050007,0.93213354,3344.0,3342.7,1.20984453]
[1768769050308,1.24408967,3344.5,3342.7,1.20984453]
[1768769050510,0.93229646,3344.4,3342.7,1.20984453]
[1768769050707,0.93229646,3344.3,3342.7,1.20984453]
[1768769051004,0.93229646,3344.2,3342.7,1.20984453]
[1768769051204,0.93229646,3344.1,3342.7,1.20984453]
[1768769051404,0.93229646,3344.0,3342.7,1.20984453]
[1768769051706,1.24408967,3344.5,3342.7,1.20984453]
[1768769051906,0.93240687,3344.4,3342.7,1.20984453]
[1768769052207,0.93240687,3344.3,3342.7,1.20984453]
[1768769052512,0.93240687,3344.2,3342.7,1.20984453]
[1768769052810,0.93240687,3344.1,3342.7,1.20984453]
[1768769053104,0.93240687,3344.0,3342.7,1.20984453]
[1768769053407,2.85766307,3344.5,3342.7,1.20984453]
[1768769053608,0.93270423,3344.4,3342.7,1.20984453]
[1768769053804,0.93270423,3344.3,3342.7,1.20984453]
[1768769054006,0.93270423,3344.2,3342.7,1.20984453]
[1768769054204,0.93270423,3344.1,3342.7,1.20984453]
[1768769054411,0.93270423,3344.0,3342.7,1.20984453]
[1768769054609,2.85766307,3344.5,3342.7,1.20984453]
[1768769054801,0.93290877,3344.4,3342.7,1.20984453]
[1768769055004,0.93290877,3344.3,3342.7,1.20984453]
[1768769055202,0.93290877,3344.2,3342.7,1.20984453]
[1768769055412,0.93290877,3344.1,3342.7,1.20984453]
[1768769055713,0.93290877,3344.0,3342.7,1.20984453]
[1768769055914,0.93290877,3343.9,3342.7,1.20984453]
[1768769056114,2.85766307,3344.5,3342.7,1.20984453]
[1768769056304,0.93354975,3344.4,3342.7,1.20984453]
[1768769056613,0.93354975,3344.3,3342.7,1.20984453]
[1768769056811,0.93354975,3344.2,3342.7,1.20984453]
[1768769057010,0.93354975,3344.1,3342.7,1.20984453]
[1768769057206,0.93354975,3344.0,3342.7,1.20984453]
[1768769057512,0.93354975,3343.9,3342.7,1.20984453]
[1768769057708,1.6135734,3344.4,3342.7,1.20984453]
[1768769057903,0.93372187,3344.3,3342.7,1.20984453]
[1768769058103,0.93372187,3344.2,3342.7,1.20984453]
[1768769058303,0.93372187,3344.1,3342.7,1.20984453]
[1768769058506,0.93372187,3344.0,3342.7,1.20984453]
[1768769058710,0.93372187,3343.9,3342.7,1.20984453]
[1768769058910,0.93372187,3343.8,3342.7,1.20984453]
[1768769059108,1.6135734,3344.4,3342.7,1.20984453]
[1768769059311,0.93396977,3344.3,3342.7,1.20984453]
[1768769059522,0.93396977,3344.2,3342.7,1.20984453]
[1768769059703,0.93396977,3344.1,3342.7,1.20984453]
[1768769059906,0.93396977,3344.0,3342.7,1.20984453]
[1768769060106,0.93396977,3343.9,3342.7,1.20984453]
[1768769060308,0.93396977,3343.8,3342.7,1.20984453]
[1768769060517,1.6135734,3344.4,3342.7,1.20984453]
[1768769060719,0.93427862,3344.3,3342.7,1.20984453]
[1768769061017,0.93427862,3344.2,3342.7,1.20984453]
[1768769061314,0.93427862,3344.1,3342.7,1.20984453]
[1768769061512,0.93427862,3344.0,3342.7,1.20984453]
[1768769061713,0.93427862,3343.9,3342.7,1.20984453]
[1768769061905,1.6135734,3344.4,3342.7,1.20984453]
[1768769061906,0.93427862,3343.8,3342.7,1.20984453]
[1768769062102,1.6135734,3344.4,3342.7,1.20984453]
[1768769062311,0.93427928,3344.3,3342.7,1.20984453]
[1768769062517,0.93427928,3344.2,3342.7,1.20984453]
[1768769062717,0.93427928,3344.1,3342.7,1.20984453]
[1768769062918,0.93427928,3344.0,3342.7,1.20984453]
[1768769063120,0.93427928,3343.9,3342.7,1.20984453]
[1768769063418,0.93427928,3343.8,3342.7,1.20984453]
[1768769063618,1.6135734,3344.4,3342.7,1.20984453]
[1768769063819,0.9342845,3344.3,3342.7,1.20984453]
[1768769064016,0.9342845,3344.2,3342.7,1.20984453]
[1768769064211,1.6135734,3344.4,3342.7,1.20984453]
[1768769064415,0.93428407,3344.3,3342.7,1.20984453]
[1768769064614,0.93428407,3344.2,3342.7,1.20984453]
[1768769064815,0.93428407,3344.1,3342.7,1.20984453]
[1768769065012,0.93428407,3344.0,3342.7,1.20984453]
[1768769065208,0.93428407,3343.9,3342.7,1.20984453]
[1768769065409,0.93428407,3343.8,3342.7,1.20984453]
[1768769065612,1.28677937,3344.2,3342.7,1.20984453]
[1768769065819,0.93427098,3344.1,3342.7,1.20984453]
[1768769066019,0.93427098,3344.0,3342.7,1.20984453]
[1768769066220,0.93427098,3343.9,3342.7,1.20984453]
[1768769066419,0.93427098,3343.8,3342.7,1.20984453]
[1768769066721,1.28677937,3344.2,3342.7,1.20984453]
[1768769066921,0.93429414,3344.1,3342.7,1.20984453]
[1768769067130,0.93429414,3344.0,3342.7,1.20984453]
[1768769067321,0.93429414,3343.9,3342.7,1.20984453]
[1768769067521,0.93429414,3343.8,3342.7,1.20984453]
[1768769067719,1.28677937,3344.2,3342.7,1.20984453]
[1768769067918,0.93429139,3344.1,3342.7,1.20984453]
[1768769068120,0.93429139,3344.0,3342.7,1.20984453]
[1768769068315,0.93429139,3343.9,3342.7,1.20984453]
[1768769068515,0.93429139,3343.8,3342.7,1.20984453]
[1768769068816,1.28677937,3344.2,3342.7,1.20984453]
[1768769069009,0.93428919,3344.1,3342.7,1.20984453]
[1768769069209,0.93428919,3344.0,3342.7,1.20984453]
[1768769069414,0.93428919,3343.9,3342.7,1.20984453]
[1768769069625,0.93428919,3343.8,3342.7,1.20984453]
[1768769069822,1.28677937,3344.2,3342.7,1.20984453]
[1768769070024,0.93428528,3344.1,3342.7,1.20984453]
[1768769070225,0.93428528,3344.0,3342.7,1.20984453]
[1768769070425,0.93428528,3343.9,3342.7,1.20984453]
[1768769070628,0.93428528,3343.8,3342.7,1.20984453]
[1768769070927,1.28677937,3344.2,3342.7,1.20984453]
[1768769071119,0.93428427,3344.1,3342.7,1.20984453]
[1768769071317,0.93428427,3344.0,3342.7,1.20984453]
[1768769071616,0.93428427,3343.9,3342.7,1.20984453]
[1768769071816,0.93428427,3343.8,3342.7,1.20984453]
[1768769072018,1.28677937,3344.2,3342.7,1.20984453]
[1768769072314,0.93428204,3344.1,3342.7,1.20984453]
[1768769072512,0.93428204,3344.0,3342.7,1.20984453]
[1768769072726,0.93428204,3343.9,3342.7,1.20984453]
[1768769072922,0.93428204,3343.8,3342.7,1.20984453]
[1768769073122,1.28677937,3344.2,3342.7,1.20984453]
[1768769073328,0.93427905,3344.1,3342.7,1.20984453]
[1768769073527,0.93427905,3344.0,3342.7,1.20984453]
[1768769073728,0.93427905,3343.9,3342.7,1.20984453]
[1768769073929,0.93427905,3343.8,3342.7,1.20984453]
[1768769074229,1.28677937,3344.2,3342.7,1.20984453]
[1768769074428,0.93427123,3344.1,3342.7,1.20984453]
[1768769074728,0.93427123,3344.0,3342.7,1.20984453]
[1768769074928,0.93427123,3343.9,3342.7,1.20984453]
[1768769075128,0.93427123,3343.8,3342.7,1.20984453]
[1768769075325,1.28677937,3344.2,3342.7,1.20984453]
[1768769075527,0.93426858,3344.1,3342.7,1.20984453]
[1768769075729,0.93426858,3344.0,3342.7,1.20984453]
[1768769075935,0.93426858,3343.9,3342.7,1.20984453]
[1768769076233,0.93426858,3343.8,3342.7,1.20984453]
[1768769076531,1.28677937,3344.2,3342.7,1.20984453]
[1768769076831,0.93426832,3344.1,3342.7,1.20984453]
[1768769077031,0.93426832,3344.0,3342.7,1.20984453]
[1768769077234,0.93426832,3343.9,3342.7,1.20984453]
[1768769077431,0.93426832,3343.8,3342.7,1.20984453]
[1768769077626,1.28677937,3344.2,3342.7,1.20984453]
[1768769077827,0.93426712,3344.1,3342.7,1.20984453]
[1768769078034,0.93426712,3344.0,3342.7,1.20984453]
[1768769078233,0.93426712,3343.9,3342.7,1.20984453]
[1768769078426,0.93426712,3343.8,3342.7,1.20984453]
[1768769078632,0.93422767,3343.7,3342.7,1.20984453]
[1768769078937,1.37509206,3344.1,3342.7,1.20984453]
[1768769079139,0.9342799,3344.0,3342.7,1.20984453]
[1768769079327,0.9342799,3343.9,3342.7,1.20984453]
[1768769079528,0.9342799,3343.8,3342.7,1.20984453]
[1768769079828,0.9342799,3343.7,3342.7,1.20984453]
[1768769080029,1.37509206,3344.1,3342.7,1.20984453]
[1768769080230,0.93419323,3344.0,3342.7,1.20984453]
[1768769080430,0.93419323,3343.9,3342.7,1.20984453]
[1768769080630,0.93419323,3343.8,3342.7,1.20984453]
[1768769080938,1.37509206,3344.1,3342.7,1.20984453]
[1768769081128,0.93415594,3344.0,3342.7,1.20984453]
[1768769081330,0.93415594,3343.9,3342.7,1.20984453]
[1768769081531,0.93415594,3343.8,3342.7,1.20984453]
[1768769081730,1.37509206,3344.1,3342.7,1.20984453]
[1768769082038,0.93412866,3344.0,3342.7,1.20984453]
[1768769082227,0.93412866,3343.9,3342.7,1.20984453]
[1768769082424,0.93412866,3343.8,3342.7,1.20984453]
[1768769082624,1.37509206,3344.1,3342.7,1.20984453]
[1768769082938,1.88906332,3344.0,3342.7,2.16480026]
[1768769083142,0.93410759,3343.9,3342.7,2.16480026]
[1768769083336,0.93410759,3343.8,3342.7,2.16480026]
[1768769083537,0.95495573,3344.0,3342.7,2.16480026]
[1768769083835,0.93408854,3343.9,3342.7,2.16480026]
[1768769084037,0.93408854,3343.8,3342.7,2.16480026]
[1768769084233,0.95495573,3344.0,3342.7,2.16480026]
[1768769084434,0.93407377,3343.9,3342.7,2.16480026]
[1768769084636,0.93407377,3343.8,3342.7,2.16480026]
[1768769084835,0.95495573,3344.0,3342.7,2.16480026]